fUST/lending_fUST_20250926
["ID","MTS","AMOUNT","RATE_DAILY","PERIOD"]
[387814837,1758887442671,-480.0,0.0003863,30]
[387814838,1758887442680,-480.0,0.0003863,30]
[387814839,1758887442689,-480.0,0.0003863,30]
[387814840,1758887442699,-480.0,0.0003863,30]
[387814841,1758887442710,-480.0,0.0003863,30]
[387814842,1758887442726,-480.0,0.0003863,30]
[387814843,1758887442743,-480.0,0.0003863,30]
[387814844,1758887442753,-480.0,0.0003863,30]
[387814845,1758887442763,-480.0,0.0003863,30]
[387814846,1758887442774,-480.0,0.0003863,30]
[387814847,1758887442784,-480.0,0.0003863,30]
[387814848,1758887442795,-480.0,0.0003863,30]
[387814849,1758887442804,-480.0,0.0003863,30]
[387814851,1758887442814,-480.0,0.0003863,30]
[387814853,1758887442823,-480.0,0.0003863,30]
[387814854,1758887442832,-480.0,0.0003863,30]
[387814855,1758887442842,-481.3430999,0.0003863,30]
[387814857,1758887442851,-480.0,0.0003863,30]
[387814859,1758887442860,-483.90166653,0.0003863,30]
[387814861,1758887442870,-480.58622084,0.0003863,30]
[387814863,1758887442880,-480.0,0.0003863,30]
[387814865,1758887442889,-480.0,0.0003863,30]
[387814867,1758887442898,-480.0,0.0003863,30]
[387814872,1758887442943,-484.56,0.0003863,30]
[387814874,1758887442952,-195.09607847,0.0003863,30]
[387814876,1758887442962,-859.92,0.0003863,3]
[387814879,1758887442972,-480.0,0.0003863,30]
[387814881,1758887442981,-481.50716956,0.0003863,30]
[387814883,1758887442991,-865.92,0.0003863,30]
[387814885,1758887443000,-480.0,0.0003863,30]
[387814887,1758887443010,-591.57,0.0003863,30]
[387814889,1758887443020,-493.958738,0.0003863,30]
[387814891,1758887443029,-480.0,0.0003863,30]
[387814893,1758887443039,-480.0,0.0003863,30]
[387814895,1758887443049,-480.0,0.0003863,30]
[387814897,1758887443059,-483.2065132,0.0003863,30]
[387814899,1758887443069,-480.0,0.0003863,30]
[387814901,1758887443078,-1052.9,0.0003863,30]
[387814903,1758887443088,-482.47669683,0.0003863,30]
[387814905,1758887443098,-3154.93,0.0003863,30]
[387814907,1758887443107,-480.0,0.0003863,30]
[387814909,1758887443116,-820.67,0.0003863,30]
[387814911,1758887443125,-533.48523871,0.0003863,30]
[387814913,1758887443135,-480.0,0.0003863,30]
[387814915,1758887443145,-480.0,0.0003863,30]
[387814917,1758887443155,-480.0,0.0003863,30]
[387814919,1758887443163,-480.0,0.0003863,30]
[387814921,1758887443173,-480.0,0.0003863,30]
[387814923,1758887443182,-480.0,0.0003863,30]
[387814925,1758887443193,-480.0,0.0003863,21]
[387814927,1758887443203,-481.08714933,0.0003863,30]
[387814929,1758887443212,-480.0,0.0003863,30]
[387814931,1758887443222,-480.51257097,0.0003863,30]
[387814933,1758887443232,-643.85,0.0003863,30]
[387814935,1758887443242,-757.66,0.0003863,30]
[387814937,1758887443251,-480.0,0.0003863,30]
[387814939,1758887443261,-480.0,0.0003863,30]
[387814941,1758887443270,-480.0,0.0003863,30]
[387814943,1758887443279,-480.0,0.0003863,30]
[387814945,1758887443289,-480.0,0.0003863,30]
[387814947,1758887443298,-923.27,0.0003863,30]
[387814948,1758887443307,-743.16,0.0003863,30]
[387814950,1758887443318,-480.0,0.0003863,30]
[387814952,1758887443327,-374.45607612,0.0003863,30]
[387814954,1758887443337,-480.0,0.0003863,30]
[387814957,1758887443347,-480.0,0.0003863,30]
[387814958,1758887443356,-480.0,0.0003863,30]
[387814961,1758887443366,-480.0,0.0003863,30]
[387814962,1758887443376,-480.0,0.0003863,30]
[387814964,1758887443385,-480.0,0.0003863,30]
[387814966,1758887443394,-480.0,0.0003863,30]
[387814968,1758887443404,-480.0,0.0003863,30]
[387814969,1758887443413,-480.0,0.0003863,30]
[387814970,1758887443423,-419.09108483,0.0003863,30]
[387814971,1758887443432,-482.5545907,0.0003863,30]
[387814973,1758887443442,-505.29,0.0003863,30]
[387814975,1758887443451,-480.0,0.0003863,30]
[387814977,1758887443460,-1515.82,0.0003863,30]
[387814979,1758887443469,-483.02247236,0.0003863,30]
[387814980,1758887443479,-2225.34,0.0003863,30]
[387814982,1758887443489,-480.0,0.0003863,30]
[387814984,1758887443498,-897.36,0.0003863,30]
[387814986,1758887443507,-480.0,0.0003863,30]
[387814988,1758887443517,-480.0,0.0003863,30]
[387814990,1758887443527,-480.0,0.0003863,30]
[387814991,1758887443536,-480.0,0.0003863,30]
[387814992,1758887443545,-480.0,0.0003863,30]
[387814993,1758887443555,-1178.01,0.0003863,30]
[387814994,1758887443565,-480.0,0.0003863,30]
[387814995,1758887443574,-482.26919444,0.0003863,30]
[387814996,1758887443585,-2461.48,0.0003863,30]
[387814997,1758887443594,-480.0,0.0003863,30]
[387814998,1758887443604,-480.0,0.0003863,30]
[387814999,1758887443613,-483.87092847,0.0003863,30]
[387815000,1758887443623,-480.0,0.0003863,30]
[387815001,1758887443632,-480.0,0.0003863,30]
[387815002,1758887443641,-482.77718007,0.0003863,30]
[387815003,1758887443731,-480.0,0.0003863,30]
[387815004,1758887443740,-480.0,0.0003863,30]
[387815005,1758887443749,-480.0,0.0003863,30]
[387815006,1758887443758,-480.0,0.0003863,30]
[387815007,1758887443767,-721.08,0.0003863,30]
[387815008,1758887443776,-480.0,0.0003863,30]
[387815009,1758887443785,-480.0,0.0003863,30]
[387815010,1758887443794,-480.0,0.0003863,30]
[387815011,1758887443803,-500.57949311,0.00038673,5]
[387815012,1758887443812,-502.75021354,0.00038673,5]
[387815013,1758887443821,-150.0,0.00038673,5]
[387815014,1758887443831,-182.5155167,0.00038681,120]
[387815015,1758887443840,-1422.42,0.000387,14]
[387815016,1758887443849,-186.15,0.00038804,120]
[387815017,1758887443858,-217.18127914,0.00038804,120]
[387815018,1758887443867,-154.45464639,0.00038804,120]
[387815019,1758887443877,-154.45,0.00038804,120]
[387815020,1758887443886,-180.19708745,0.00038804,120]
[387815021,1758887443896,-180.19708745,0.00038804,120]
[387815022,1758887443905,-1000.0,0.00038821,5]
[387815023,1758887443915,-480.0,0.00038903,30]
[387815024,1758887443925,-481.81950751,0.00038903,30]
[387815025,1758887443934,-480.0,0.00038903,30]
[387815026,1758887443944,-202.18586854,0.00038903,30]
[387815027,1758887443953,-480.0,0.00038903,30]
[387815028,1758887443962,-415.40201911,0.00038903,30]
[387815029,1758887443972,-480.0,0.00038903,30]
[387815030,1758887443981,-480.0,0.00038903,30]
[387815031,1758887443991,-480.0,0.00038903,30]
[387815032,1758887444001,-480.0,0.00038903,30]
[387815033,1758887444010,-480.0,0.00038904,30]
[387815034,1758887444019,-480.0,0.00038904,30]
[387815035,1758887444028,-480.0,0.00038904,30]
[387815037,1758887444037,-480.0,0.00038904,30]
[387815039,1758887444047,-480.0,0.00038904,30]
[387815040,1758887444056,-480.0,0.00038904,30]
[387815041,1758887444065,-486.1850427,0.00038904,30]
[387815042,1758887444075,-259.40284431,0.00038904,30]
[387815043,1758887444084,-480.0,0.00038904,30]
[387815044,1758887444094,-485.81465112,0.00038904,30]
[387815045,1758887444104,-480.0,0.00038904,30]
[387815046,1758887444113,-480.0,0.00038904,30]
[387815047,1758887444123,-556.81832871,0.00038904,30]
[387815048,1758887444133,-480.0,0.00038904,30]
[387815049,1758887444144,-480.0,0.00038904,30]
[387815050,1758887444153,-480.0,0.00038904,30]
[387815051,1758887444163,-480.0,0.00038904,30]
[387815052,1758887444173,-480.0,0.00038904,30]
[387815053,1758887444183,-480.0,0.00038904,30]
[387815054,1758887444196,-480.0,0.00038904,30]
[387815055,1758887444207,-480.0,0.00038904,30]
[387815056,1758887444217,-480.0,0.00038904,30]
[387815057,1758887444227,-480.0,0.00038904,30]
[387815058,1758887444236,-480.0,0.00038904,30]
[387815059,1758887444246,-480.0,0.00038904,30]
[387815060,1758887444255,-480.0,0.00038904,30]
[387815061,1758887444266,-480.0,0.00038904,30]
[387815062,1758887444276,-540.14,0.00038904,30]
[387815063,1758887444286,-480.0,0.00038904,30]
[387815064,1758887444296,-480.0,0.00038904,30]
[387815065,1758887444306,-480.0,0.00038904,30]
[387815066,1758887444315,-480.0,0.00038904,30]
[387815067,1758887444325,-551.3,0.00038904,30]
[387815068,1758887444335,-481.66202494,0.00038904,30]
[387815069,1758887444344,-480.0,0.00038904,30]
[387815070,1758887444354,-480.0,0.00038904,30]
[387815071,1758887444363,-480.0,0.00038904,30]
[387815072,1758887444373,-650.91,0.00038904,30]
[387815073,1758887444382,-480.0,0.00038904,30]
[387815074,1758887444392,-480.0,0.00038904,30]
[387815075,1758887444402,-480.0,0.00038904,30]
[387815076,1758887444411,-480.0,0.00038904,30]
[387815077,1758887444421,-480.0,0.00038904,30]
[387815078,1758887444430,-480.0,0.00038904,30]
[387815079,1758887444439,-480.0,0.00038904,30]
[387815080,1758887444449,-480.0,0.00038904,30]
[387815081,1758887444458,-480.0,0.00038904,30]
[387815082,1758887444467,-480.0,0.00038904,30]
[387815083,1758887444476,-480.0,0.00038904,30]
[387815084,1758887444486,-480.0,0.00038904,30]
[387815085,1758887444495,-480.0,0.00038904,30]
[387815086,1758887444504,-484.42348133,0.00038904,20]
[387815087,1758887444513,-481.58050595,0.00038904,30]
[387815088,1758887444522,-480.0,0.00038904,30]
[387815089,1758887444532,-480.0,0.00038904,30]
[387815090,1758887444541,-480.0,0.00038904,30]
[387815091,1758887444551,-491.04097339,0.00038904,30]
[387815092,1758887444561,-480.0,0.00038904,30]
[387815093,1758887444569,-480.0,0.00038904,30]
[387815094,1758887444578,-200.0,0.00038904,30]
[387815095,1758887444587,-448.2399359,0.00038904,30]
[387815096,1758887444596,-480.0,0.00038904,30]
[387815097,1758887444606,-535.34044957,0.00038904,30]
[387815098,1758887444615,-484.94657902,0.00038904,30]
[387815099,1758887444624,-450.1682156,0.00038904,30]
[387815100,1758887444633,-250.10815351,0.00038904,30]
[387815101,1758887444642,-483.50102933,0.00038904,30]
[387815102,1758887444651,-485.75849401,0.00038904,30]
[387815103,1758887444659,-480.0,0.00038904,30]
[387815104,1758887444668,-3097.95,0.00038904,30]
[387815105,1758887444677,-480.0,0.00038904,30]
[387815106,1758887444686,-486.22593233,0.00038904,30]
[387815107,1758887444695,-480.0,0.00038904,30]
[387815108,1758887444704,-484.05601462,0.00038904,30]
[387815109,1758887444713,-482.75787445,0.00038904,30]
[387815110,1758887444723,-564.36,0.00038904,30]
[387815111,1758887444732,-483.23815202,0.00038904,30]
[387815112,1758887444741,-480.0,0.00038904,30]
[387815113,1758887444751,-483.74680544,0.00038904,30]
[387815114,1758887444760,-480.0,0.00038904,30]
[387815115,1758887444769,-480.0,0.00038904,30]
[387815116,1758887444779,-199.93241159,0.00038904,30]
[387815117,1758887444788,-480.0,0.00038904,30]
[387815118,1758887444797,-480.0,0.00038904,30]
[387815119,1758887444807,-482.91169041,0.00038904,30]
[387815120,1758887444817,-584.00539824,0.00038904,30]
[387815121,1758887444827,-480.0,0.00038904,30]
[387815122,1758887444837,-480.0,0.00038904,30]
[387815123,1758887444847,-915.51,0.00038904,30]
[387815124,1758887444856,-480.0,0.00038904,30]
[387815125,1758887444866,-480.0,0.00038904,30]
[387815126,1758887444876,-480.0,0.00038904,30]
[387815127,1758887444886,-480.0,0.00038904,30]
[387815128,1758887444895,-420.71450411,0.00038904,30]
[387815129,1758887444905,-269.26060492,0.00038904,30]
[387815130,1758887444914,-480.0,0.00038904,30]
[387815131,1758887444923,-664.71,0.00038904,30]
[387815132,1758887444932,-485.18336828,0.00038904,30]
[387815133,1758887444941,-482.7101371,0.00038904,30]
[387815134,1758887444950,-2018.41,0.00038904,30]
[387815135,1758887444960,-482.41,0.00038904,30]
[387815136,1758887444969,-522.48,0.00038904,30]
[387815137,1758887444982,-986.89,0.00038904,30]
[387815138,1758887444991,-486.36992425,0.00038904,30]
[387815139,1758887445001,-484.62038549,0.00038904,30]
[387815140,1758887445011,-482.32354563,0.00038904,30]
[387815141,1758887445020,-485.4370737,0.00038904,30]
[387815142,1758887445028,-509.83514996,0.00038904,30]
[387815143,1758887445038,-480.0,0.00038904,30]
[387815144,1758887445048,-480.0,0.00038904,30]
[387815145,1758887445058,-483.12675556,0.00038904,30]
[387815146,1758887445068,-480.0,0.00038904,30]
[387815147,1758887445078,-480.0,0.00038904,30]
[387815148,1758887445087,-480.0,0.00038904,30]
[387815149,1758887445097,-263.6240273,0.00038904,30]
[387815150,1758887445106,-627.40659657,0.00038904,30]
[387815151,1758887445116,-480.0,0.00038904,30]
[387815152,1758887445126,-480.0,0.00038904,30]
[387815153,1758887445135,-480.0,0.00038904,30]
[387815154,1758887445145,-480.0,0.00038904,30]
[387815155,1758887445155,-480.0,0.00038904,30]
[387815156,1758887445165,-643.58,0.00038904,30]
[387815157,1758887445175,-484.92,0.00038904,30]
[387815158,1758887445185,-252.09704823,0.00038904,30]
[387815159,1758887445197,-480.0,0.00038904,30]
[387815160,1758887445206,-480.0,0.00038904,30]
[387815162,1758887445216,-480.0,0.00038904,30]
[387815163,1758887445225,-480.0,0.00038904,30]
[387815165,1758887445234,-299.51749276,0.00038904,30]
[387815166,1758887445243,-480.0,0.00038904,30]
[387815167,1758887445253,-480.0,0.00038904,30]
[387815168,1758887445262,-480.0,0.00038904,30]
[387815170,1758887445271,-480.0,0.00038904,30]
[387815171,1758887445281,-480.0,0.00038904,30]
[387815173,1758887445291,-480.0,0.00038904,30]
[387815174,1758887445300,-480.0,0.00038904,30]
[387815175,1758887445310,-488.53235778,0.00038904,30]
[387815176,1758887445320,-480.0,0.00038904,30]
[387815177,1758887445330,-480.0,0.00038904,30]
[387815178,1758887445340,-480.0,0.00038904,30]
[387815179,1758887445350,-480.0,0.00038904,30]
[387815180,1758887445359,-482.10199124,0.00038904,30]
[387815181,1758887445369,-481.33096985,0.00038904,30]
[387815182,1758887445378,-480.0,0.00038904,30]
[387815183,1758887445388,-480.0,0.00038904,30]
[387815184,1758887445397,-484.56,0.00038904,30]
[387815185,1758887445406,-859.92,0.00038904,3]
[387815186,1758887445415,-480.0,0.00038904,30]
[387815187,1758887445425,-865.92,0.00038904,30]
[387815188,1758887445435,-480.0,0.00038904,30]
[387815189,1758887445443,-591.57,0.00038904,30]
[387815190,1758887445452,-483.04610148,0.00038904,30]
[387815191,1758887445462,-480.0,0.00038904,30]
[387815192,1758887445471,-480.0,0.00038904,30]
[387815193,1758887445481,-480.0,0.00038904,30]
[387815194,1758887445491,-1052.9,0.00038904,30]
[387815195,1758887445501,-481.91393383,0.00038904,30]
[387815196,1758887445510,-3154.93,0.00038904,30]
[387815197,1758887445520,-820.67,0.00038904,30]
[387815198,1758887445596,-480.0,0.00038904,30]
[387815199,1758887445615,-275.21184499,0.00038904,30]
[387815200,1758887445625,-480.0,0.00038904,30]
[387815201,1758887445634,-480.0,0.00038904,30]
[387815202,1758887445643,-482.25878297,0.00038904,30]
[387815203,1758887445653,-480.0,0.00038904,30]
[387815204,1758887445662,-480.0,0.00038904,21]
[387815205,1758887445672,-480.0,0.00038904,30]
[387815206,1758887445682,-643.85,0.00038904,30]
[387815207,1758887445691,-757.66,0.00038904,30]
[387815208,1758887445701,-480.0,0.00038904,30]
[387815209,1758887445710,-480.0,0.00038904,30]
[387815210,1758887445720,-452.37097568,0.00038904,30]
[387815211,1758887445730,-480.0,0.00038904,30]
[387815212,1758887445740,-923.27,0.00038904,30]
[387815213,1758887445750,-743.16,0.00038904,30]
[387815214,1758887445760,-480.0,0.00038904,30]
[387815215,1758887445770,-480.0,0.00038904,30]
[387815216,1758887445780,-481.68986133,0.00038904,30]
[387815217,1758887445789,-480.0,0.00038904,30]
[387815218,1758887445799,-480.0,0.00038904,30]
[387815219,1758887445808,-481.07312061,0.00038904,30]
[387815220,1758887445818,-480.0,0.00038904,30]
[387815221,1758887445827,-480.0,0.00038904,30]
[387815222,1758887445837,-482.96279538,0.00038904,30]
[387815223,1758887445847,-480.0,0.00038904,30]
[387815224,1758887445856,-505.29,0.00038904,30]
[387815225,1758887445866,-480.0,0.00038904,30]
[387815226,1758887445875,-1515.82,0.00038904,30]
[387815227,1758887445885,-2225.34,0.00038904,30]
[387815228,1758887445895,-480.0,0.00038904,30]
[387815229,1758887445905,-897.36,0.00038904,30]
[387815230,1758887445914,-480.0,0.00038904,30]
[387815231,1758887445923,-480.0,0.00038904,30]
[387815232,1758887445933,-480.0,0.00038904,30]
[387815233,1758887445942,-480.0,0.00038904,30]
[387815234,1758887445951,-480.0,0.00038904,30]
[387815235,1758887445962,-1178.01,0.00038904,30]
[387815236,1758887445971,-480.0,0.00038904,30]
[387815237,1758887445980,-2461.48,0.00038904,30]
[387815238,1758887445989,-470.0097131,0.00038904,30]
[387815239,1758887445999,-480.0,0.00038904,30]
[387815240,1758887446008,-233.27550907,0.00038904,30]
[387815241,1758887446018,-482.08901471,0.00038904,30]
[387815242,1758887446027,-480.0,0.00038904,30]
[387815243,1758887446036,-721.08,0.00038904,30]
[387815244,1758887446046,-480.0,0.00038904,30]
[387815245,1758887446057,-480.0,0.00038904,30]
[387815246,1758887446068,-199.20500054,0.00038921,5]
[387815247,1758887446081,-1000.0,0.00038921,5]
[387815248,1758887446091,-373.93849134,0.00038921,5]
[387815250,1758887446101,-1000.0,0.00038921,5]
[387815251,1758887446111,-551.64851946,0.00038921,5]
[387815252,1758887446120,-817.37617066,0.00038921,5]
[387815253,1758887446130,-1000.0,0.00038921,5]
[387815254,1758887446140,-637.42151261,0.00038921,5]
[387815255,1758887446150,-1052.13289165,0.00038921,5]
[387815256,1758887446160,-1000.0,0.00038921,5]
[387815257,1758887446170,-394.78656748,0.00038921,5]
[387815258,1758887446180,-1000.0,0.00038921,5]
[387815259,1758887446190,-180.19708745,0.00038945,120]
[387815260,1758887446204,-480.0,0.00039177,30]
[387815261,1758887446213,-482.46865362,0.00039177,30]
[387815262,1758887446223,-482.66949851,0.00039177,30]
[387815264,1758887446232,-480.0,0.00039177,30]
[387815266,1758887446243,-482.24931815,0.00039177,30]
[387815267,1758887446252,-480.0,0.00039177,30]
[387815268,1758887446263,-480.0,0.00039177,30]
[387815269,1758887446274,-480.0,0.00039178,30]
[387815270,1758887446284,-484.4243218,0.00039178,30]
[387815272,1758887446293,-480.0,0.00039178,30]
[387815274,1758887446302,-480.0,0.00039178,30]
[387815276,1758887446315,-480.0,0.00039178,30]
[387815278,1758887446325,-480.0,0.00039178,30]
[387815279,1758887446335,-480.0,0.00039178,30]
[387815280,1758887446345,-493.56401731,0.00039178,30]
[387815281,1758887446354,-480.0,0.00039178,30]
[387815282,1758887446364,-480.0,0.00039178,30]
[387815283,1758887446373,-480.0,0.00039178,30]
[387815284,1758887446383,-480.0,0.00039178,30]
[387815285,1758887446393,-480.0,0.00039178,30]
[387815286,1758887446403,-480.0,0.00039178,30]
[387815287,1758887446412,-480.0,0.00039178,30]
[387815288,1758887446422,-540.14,0.00039178,30]
[387815290,1758887446431,-52.20161037,0.00039178,30]
[387815294,1758887446565,-427.79838963,0.00039178,30]
[387815295,1758887446575,-27.23892349,0.00039178,30]
[387815296,1758887446587,-452.76107651,0.00039178,30]
[387815297,1758887446596,-480.0,0.00039178,30]
[387815298,1758887446605,-195.83892349,0.00039178,30]
[387815301,1758887446968,-5000.0,0.00027996,2]
[387815303,1758887446979,-285.15574584,0.00028279,2]
[387815305,1758887446988,-226.13849785,0.00028279,2]
[387815307,1758887446999,-500.0,0.00028279,2]
[387815308,1758887447009,-440.06513306,0.00028279,2]
[387815309,1758887447019,-500.0,0.00028279,2]
[387815310,1758887447028,-500.0,0.00028279,2]
[387815311,1758887447037,-500.0,0.00028279,2]
[387815312,1758887447047,-500.0,0.00028279,2]
[387815313,1758887447057,-150.184,0.0003715,2]
[387815314,1758887447067,-480.53163912,0.00038356,30]
[387815315,1758887447076,-480.0,0.00038356,30]
[387815317,1758887447087,-151.42625617,0.0003863,30]
[387815318,1758887447096,-480.0,0.0003863,30]
[387815319,1758887447105,-473.06,0.00038904,30]
[387815320,1758887447115,-284.16107651,0.00039178,30]
[387815321,1758887447124,-480.0,0.00039178,30]
[387815322,1758887447133,-480.0,0.00039178,30]
[387815323,1758887447143,-650.91,0.00039178,30]
[387815324,1758887447153,-509.3488162,0.00039178,30]
[387815325,1758887447162,-150.10899281,0.00039178,30]
[387815326,1758887447172,-480.0,0.00039178,30]
[387815327,1758887447181,-480.0,0.00039178,30]
[387815328,1758887447277,-480.0,0.00039178,30]
[387815329,1758887447287,-480.0,0.00039178,30]
[387815330,1758887447298,-187.353575,0.00039178,120]
[387815331,1758887447308,-480.0,0.00039178,30]
[387815332,1758887447317,-480.0,0.00039178,30]
[387815333,1758887447327,-480.0,0.00039178,30]
[387815334,1758887447336,-151.0,0.00039178,120]
[387815335,1758887447346,-151.0,0.00039178,120]
[387815336,1758887447355,-480.0,0.00039178,30]
[387815337,1758887447365,-151.0,0.00039178,120]
[387815338,1758887447374,-480.0,0.00039178,30]
[387815339,1758887447383,-480.0,0.00039178,30]
[387815340,1758887447393,-201.30129779,0.00039178,30]
[387815341,1758887447403,-151.0,0.00039178,120]
[387815342,1758887447413,-480.0,0.00039178,30]
[387815343,1758887447422,-480.0,0.00039178,30]
[387815344,1758887447432,-200.0,0.00039178,30]
[387815345,1758887447442,-480.0,0.00039178,30]
[387815346,1758887447452,-480.0,0.00039178,30]
[387815347,1758887447462,-480.0,0.00039178,30]
[387815348,1758887447471,-486.74712993,0.00039178,30]
[387815349,1758887447479,-564.36,0.00039178,30]
[387815350,1758887447489,-480.0,0.00039178,30]
[387815351,1758887447498,-490.43668597,0.00039178,30]
[387815352,1758887447508,-487.42196247,0.00039178,30]
[387815353,1758887447517,-500.4453899,0.00039178,30]
[387815354,1758887447526,-151.0,0.00039178,120]
[387815355,1758887447536,-480.0,0.00039178,30]
[387815356,1758887447545,-915.51,0.00039178,30]
[387815357,1758887447555,-480.0,0.00039178,30]
[387815358,1758887447566,-480.0,0.00039178,30]
[387815359,1758887447576,-556.77735612,0.00039178,30]
[387815360,1758887447586,-480.0,0.00039178,30]
[387815361,1758887447595,-480.0,0.00039178,30]
[387815362,1758887447605,-664.71,0.00039178,30]
[387815363,1758887447616,-2018.41,0.00039178,30]
[387815364,1758887447626,-522.48,0.00039178,30]
[387815365,1758887447636,-986.89,0.00039178,30]
[387815366,1758887447646,-480.0,0.00039178,30]
[387815367,1758887447656,-152.551979,0.00039178,120]
[387815368,1758887447666,-480.0,0.00039178,30]
[387815369,1758887447675,-480.0,0.00039178,30]
[387815370,1758887447685,-480.0,0.00039178,30]
[387815371,1758887447695,-480.0,0.00039178,30]
[387815372,1758887447705,-493.61430169,0.00039178,30]
[387815373,1758887447714,-480.0,0.00039178,30]
[387815374,1758887447723,-499.87684998,0.00039178,30]
[387815375,1758887447733,-480.0,0.00039178,30]
[387815376,1758887447743,-643.58,0.00039178,30]
[387815377,1758887447753,-484.92,0.00039178,30]
[387815378,1758887447764,-151.0,0.00039178,120]
[387815379,1758887447774,-480.0,0.00039178,30]
[387815380,1758887447784,-480.0,0.00039178,30]
[387815381,1758887447794,-480.0,0.00039178,30]
[387815382,1758887447804,-151.0,0.00039178,120]
[387815383,1758887447815,-480.0,0.00039178,30]
[387815384,1758887447824,-480.0,0.00039178,30]
[387815385,1758887447834,-151.0,0.00039178,120]
[387815386,1758887447843,-480.0,0.00039178,30]
[387815387,1758887447853,-480.0,0.00039178,30]
[387815388,1758887447862,-480.0,0.00039178,30]
[387815389,1758887447872,-480.0,0.00039178,30]
[387815390,1758887447881,-480.0,0.00039178,30]
[387815391,1758887447890,-482.21389052,0.00039178,30]
[387815392,1758887447899,-480.0,0.00039178,30]
[387815393,1758887447908,-151.0,0.00039178,120]
[387815394,1758887447917,-483.82313275,0.00039178,30]
[387815395,1758887447926,-481.27742139,0.00039178,30]
[387815396,1758887447935,-480.0,0.00039178,30]
[387815397,1758887447944,-484.56,0.00039178,30]
[387815398,1758887447954,-859.92,0.00039178,3]
[387815399,1758887447963,-480.0,0.00039178,30]
[387815400,1758887447972,-865.92,0.00039178,30]
[387815401,1758887447981,-151.0,0.00039178,30]
[387815402,1758887447991,-480.0,0.00039178,30]
[387815403,1758887448001,-151.0,0.00039178,120]
[387815404,1758887448010,-591.57,0.00039178,30]
[387815405,1758887448019,-480.0,0.00039178,30]
[387815406,1758887448028,-151.0,0.00039178,120]
[387815407,1758887448037,-599.03453946,0.00039178,30]
[387815408,1758887448047,-1052.9,0.00039178,30]
[387815409,1758887448056,-151.0,0.00039178,120]
[387815410,1758887448066,-3154.93,0.00039178,30]
[387815411,1758887448075,-820.67,0.00039178,30]
[387815412,1758887448085,-151.0,0.00039178,120]
[387815413,1758887448094,-151.0,0.00039178,120]
[387815414,1758887448103,-480.0,0.00039178,30]
[387815415,1758887448113,-480.0,0.00039178,30]
[387815416,1758887448122,-488.65242809,0.00039178,30]
[387815417,1758887448132,-480.0,0.00039178,21]
[387815418,1758887448142,-643.85,0.00039178,30]
[387815419,1758887448151,-757.66,0.00039178,30]
[387815420,1758887448161,-151.0,0.00039178,120]
[387815421,1758887448171,-151.0,0.00039178,120]
[387815422,1758887448180,-151.0,0.00039178,120]
[387815423,1758887448190,-480.0,0.00039178,30]
[387815424,1758887448204,-215.953594,0.00039178,120]
[387815425,1758887448214,-923.27,0.00039178,30]
[387815426,1758887448224,-743.16,0.00039178,30]
[387815427,1758887448234,-480.0,0.00039178,30]
[387815428,1758887448244,-480.0,0.00039178,30]